bitfinex-derivatives/quotes_BTCF0:USTF0_20251128
["timestamp","ask_amount","ask_price","bid_price","bid_amount"]
[1764312205974,0.8058021,91498.0,91497.0,0.01034492]
[1764312206274,0.02202,91490.0,91489.0,0.0574531]
[1764312206474,0.04379,91490.0,91489.0,0.0574531]
[1764312206982,0.04379,91490.0,91489.0,0.04652]
[1764312207976,0.04479,91490.0,91489.0,0.04652]
[1764312209888,0.001,91490.0,91489.0,0.04652]
[1764312210186,0.02277,91490.0,91489.0,0.04652]
[1764312210387,0.04479,91490.0,91489.0,0.04652]
[1764312218797,0.45479,91490.0,91489.0,0.04652]
[1764312219298,0.0560235,91486.0,91485.0,0.06244548]
[1764312219488,0.0560235,91486.0,91485.0,0.04566]
[1764312220592,0.04509,91486.0,91485.0,0.04566]
[1764312220999,0.04509,91486.0,91485.0,0.05888]
[1764312221890,0.0560232,91489.0,91488.0,0.04566]
[1764312223200,0.0570232,91489.0,91488.0,0.04566]
[1764312224002,0.04609,91489.0,91488.0,0.04566]
[1764312224203,0.001,91489.0,91488.0,0.04566]
[1764312224592,0.04609,91489.0,91488.0,0.02267]
[1764312224885,0.04609,91489.0,91488.0,0.04566]
[1764312226996,0.43609,91489.0,91488.0,0.02267]
[1764312228004,0.43609,91489.0,91488.0,0.04566]
[1764312232799,0.001,91489.0,91488.0,0.0565933]
[1764312233506,0.001,91489.0,91488.0,0.4173933]
[1764312234709,0.04525401,91499.0,91498.0,0.0565921]
[1764312235008,0.45525401,91499.0,91498.0,0.0565921]
[1764312235802,0.45625401,91499.0,91498.0,0.0565921]
[1764312236711,0.45625401,91499.0,91498.0,0.04566]
[1764312240694,0.45625401,91499.0,91498.0,0.02267]
[1764312241100,0.04625401,91499.0,91498.0,0.02267]
[1764312241307,0.45625401,91499.0,91498.0,0.04566]
[1764312241805,0.45625401,91499.0,91498.0,0.02267]
[1764312242110,0.0456,91490.0,91489.0,0.06052686]
[1764312242507,0.4856,91490.0,91489.0,0.06052686]
[1764312242901,0.0756,91490.0,91489.0,0.06052686]
[1764312243213,0.0456,91497.0,91496.0,0.04442]
[1764312243509,0.0456,91497.0,91489.0,0.06052686]
[1764312243510,0.0456,91490.0,91489.0,0.06052686]
[1764312243805,0.0456,91490.0,91489.0,0.07146006]
[1764312246810,0.4356,91490.0,91489.0,0.06052686]
[1764312247609,0.4356,91490.0,91489.0,0.07146006]
[1764312248610,0.4356,91490.0,91489.0,0.06052686]
[1764312252120,0.4356,91490.0,91489.0,0.07146006]
[1764312253921,0.4356,91490.0,91489.0,0.06052686]
[1764312257417,0.4356,91490.0,91489.0,0.01610686]
[1764312257618,0.0456,91481.0,91480.0,0.05551811]
[1764312257922,0.0456,91481.0,91480.0,0.04458401]
[1764312260326,0.0456,91481.0,91480.0,0.06136319]
[1764312260528,0.0456,91481.0,91480.0,0.14678533]
[1764312261825,0.0456,91481.0,91480.0,0.15771963]
[1764312262328,0.0456,91481.0,91480.0,0.14678533]
[1764312263231,0.0456,91481.0,91480.0,0.15771963]
[1764312264024,0.0456,91481.0,91480.0,0.14678533]
[1764312266333,0.0456,91481.0,91480.0,0.06136319]
[1764312266533,0.4456,91481.0,91480.0,0.01694319]
[1764312266735,0.8064,91481.0,91480.0,0.01694319]
[1764312270234,0.8064,91481.0,91480.0,0.03866319]
[1764312274934,0.8064,91481.0,91480.0,0.06092319]
[1764312275730,0.8064,91481.0,91480.0,0.07466319]
[1764312276432,0.8064,91481.0,91480.0,0.06092319]
[1764312284635,0.8064,91481.0,91480.0,0.01694319]
[1764312290738,0.97868,91481.0,91480.0,0.01677918]
[1764312290950,0.04393,91466.0,91465.0,0.02214]
[1764312291152,0.48393,91466.0,91465.0,0.02214]
[1764312291646,0.04393,91461.0,91460.0,0.0553365]
[1764312291842,0.04393,91456.0,91455.0,0.4052]
[1764312293145,0.04393,91456.0,91455.0,0.42193856]
[1764312293344,0.04393,91456.0,91455.0,0.42393856]
[1764312301158,0.04393,91456.0,91455.0,0.43487576]
[1764312301655,0.04393,91456.0,91455.0,0.42393856]
[1764312301855,0.04393,91456.0,91455.0,0.43487576]
[1764312304850,0.04393,91456.0,91455.0,0.43287576]
[1764312305057,0.04393,91456.0,91455.0,0.43487576]
[1764312305957,0.04393,91456.0,91455.0,0.43287576]
[1764312306161,0.04393,91456.0,91455.0,0.43487576]
[1764312306358,0.04393,91456.0,91455.0,0.42393856]
[1764312307951,0.04393,91456.0,91455.0,0.06313856]
[1764312309257,0.04393,91456.0,91455.0,0.06213856]
[1764312309447,0.04393,91456.0,91455.0,0.03987856]
[1764312309652,0.48393,91456.0,91455.0,0.03987856]
[1764312310054,0.49648,91456.0,91455.0,0.03987856]
[1764312310563,0.49648,91456.0,91455.0,0.01773856]
[1764312312662,0.49648,91456.0,91455.0,0.01673856]
[1764312312862,0.04612,91452.0,91451.0,0.04334401]
[1764312313059,0.83692,91452.0,91451.0,0.04334401]
[1764312314064,0.8478576,91452.0,91451.0,0.04334401]
[1764312314367,0.54692,91452.0,91451.0,0.04334401]
[1764312314668,0.7508,91452.0,91451.0,0.04334401]
[1764312314867,0.77408,91452.0,91451.0,0.04434401]
[1764312315056,0.7508,91452.0,91451.0,0.04434401]
[1764312315259,0.7508,91452.0,91451.0,0.04334401]
[1764312315459,0.7508,91452.0,91451.0,0.04534401]
[1764312315864,0.77408,91452.0,91451.0,0.04534401]
[1764312316876,0.77408,91452.0,91451.0,0.04334401]
[1764312317070,0.77408,91452.0,91451.0,0.06284945]
[1764312317271,0.79533,91452.0,91451.0,0.06284945]
[1764312317580,0.79533,91452.0,91451.0,0.06384945]
[1764312318271,0.40533,91452.0,91451.0,0.06384945]
[1764312319072,0.3608,91452.0,91451.0,0.06384945]
[1764312319272,0.40549401,91470.0,91469.0,0.0447]
[1764312319479,1.02381401,91470.0,91469.0,0.0447]
[1764312319681,0.65381401,91470.0,91469.0,0.0447]
[1764312319881,0.82549401,91470.0,91469.0,0.0447]
[1764312320177,0.55549401,91470.0,91469.0,0.0556356]
[1764312320477,0.36096401,91470.0,91469.0,0.0556356]
[1764312320672,0.00016401,91470.0,91469.0,0.0556356]
[1764312321071,0.3608,91487.0,91486.0,0.0447]
[1764312321272,0.77533,91487.0,91486.0,0.0447]
[1764312321580,0.40533,91487.0,91486.0,0.0447]
[1764312323883,0.01237,91480.0,91477.0,0.00016401]
[1764312324090,0.04453,91478.0,91477.0,0.00016401]
[1764312324276,0.04453,91478.0,91477.0,0.04486401]
[1764312325284,0.04453,91478.0,91477.0,0.04586401]
[1764312326479,0.45453,91478.0,91477.0,0.04586401]
[1764312330788,0.45453,91478.0,91477.0,0.06383839]
[1764312332484,0.45453,91478.0,91477.0,0.01913839]
[1764312334288,0.45453,91478.0,91477.0,0.01813839]
[1764312339387,0.0447,91464.0,91463.0,0.40592]
[1764312339587,0.4147,91464.0,91463.0,0.40592]
[1764312340188,0.4147,91464.0,91463.0,0.42352397]
[1764312340791,0.4147,91464.0,91463.0,0.42652397]
[1764312340987,0.4147,91464.0,91463.0,0.43746027]
[1764312345787,0.4147,91464.0,91463.0,0.43546027]
[1764312349600,0.4147,91464.0,91463.0,0.07466027]
[1764312350000,0.4147,91464.0,91463.0,0.06372397]
[1764312359214,0.4147,91464.0,91463.0,0.07466027]
[1764312361819,0.4147,91464.0,91463.0,0.06272397]
[1764312362003,0.4147,91464.0,91463.0,0.06472397]
[1764312362807,0.4147,91464.0,91463.0,0.06272397]
[1764312363006,0.4147,91464.0,91463.0,0.06472397]
[1764312364913,0.4147,91464.0,91463.0,0.06272397]
[1764312365114,0.4147,91464.0,91463.0,0.06472397]
[1764312366011,0.4147,91464.0,91463.0,0.06272397]
[1764312366211,0.4147,91464.0,91463.0,0.06572397]
[1764312368622,0.40401,91470.0,91469.0,0.04418]
[1764312368819,0.40401,91470.0,91469.0,0.0551156]
[1764312369712,0.04321,91464.0,91463.0,0.04194397]
[1764312370826,0.04321,91464.0,91463.0,0.03894397]
[1764312371617,0.05576,91464.0,91463.0,0.01760397]
[1764312371818,0.44576,91464.0,91463.0,0.001]
[1764312373524,0.04398,91461.0,91460.0,0.14103283]
[1764312373723,0.04398,91461.0,91460.0,0.15848623]
[1764312373927,0.04398,91461.0,91460.0,0.0602434]
[1764312374718,0.04398,91461.0,91460.0,0.0612434]
[1764312375319,0.04398,91461.0,91460.0,0.0622434]
[1764312376628,0.04398,91461.0,91460.0,0.07318]
[1764312376826,0.04398,91461.0,91460.0,0.0602434]
[1764312377019,0.04398,91461.0,91460.0,0.0612434]
[1764312377823,0.43398,91461.0,91460.0,0.0612434]
[1764312378427,0.43398,91461.0,91460.0,0.0602434]
[1764312378729,0.43398,91461.0,91460.0,0.0612434]
[1764312381836,0.43398,91461.0,91460.0,0.0602434]
[1764312382025,0.43398,91461.0,91460.0,0.0612434]
[1764312384832,0.43398,91461.0,91460.0,0.07218]
[1764312385031,0.43398,91461.0,91460.0,0.0602434]
[1764312385335,0.43398,91461.0,91460.0,0.0612434]
[1764312385729,0.43398,91461.0,91460.0,0.07218]
[1764312386534,0.43398,91461.0,91460.0,0.0612434]
[1764312386835,0.43398,91461.0,91460.0,0.07218]
[1764312387028,0.22398,91461.0,91460.0,0.07218]
[1764312387429,0.22398,91461.0,91460.0,0.0612434]
[1764312387636,0.22398,91461.0,91460.0,0.0602434]
[1764312387938,0.22398,91461.0,91460.0,0.0612434]
[1764312388332,0.22398,91461.0,91460.0,0.0622434]
[1764312388529,0.22398,91461.0,91460.0,0.07318]
[1764312388834,0.22398,91461.0,91460.0,0.0602434]
[1764312389131,0.22398,91461.0,91460.0,0.0622434]
[1764312389537,0.47398,91461.0,91460.0,0.0622434]
[1764312390427,0.47398,91461.0,91460.0,0.0612434]
[1764312390838,0.47398,91461.0,91460.0,0.0602434]
[1764312391133,0.47398,91461.0,91460.0,0.0612434]
[1764312394925,0.47398,91461.0,91460.0,0.0602434]
[1764312395128,0.47398,91461.0,91460.0,0.0612434]
[1764312395939,0.48653,91461.0,91460.0,0.0184534]
[1764312396531,0.48653,91461.0,91460.0,0.00910781]
[1764312396740,0.0693972,91455.0,91454.0,0.00016401]
[1764312396938,0.4993972,91455.0,91454.0,0.00016401]
[1764312397931,0.4993972,91455.0,91454.0,0.01799566]
[1764312398131,0.4993972,91455.0,91454.0,0.00016401]
[1764312398536,0.4993972,91455.0,91454.0,4.01e-06]
[1764312398834,0.0568482,91447.0,91446.0,0.00027339]
[1764312399030,0.9699282,91447.0,91446.0,0.00027339]
[1764312399439,0.05685,91432.0,91431.0,0.405]
[1764312399637,0.48685,91432.0,91431.0,0.405]
[1764312400438,0.47591,91432.0,91431.0,0.409]
[1764312401738,0.47591,91432.0,91431.0,0.42695472]
[1764312402039,0.47591,91432.0,91431.0,0.42795472]
[1764312402429,0.47591,91432.0,91431.0,0.06715472]
[1764312402756,0.48842,91432.0,91431.0,0.02295472]
[1764312410341,0.48842,91432.0,91431.0,0.04501472]
[1764312410640,0.48842,91432.0,91431.0,0.02295472]
[1764312411936,0.47591,91432.0,91431.0,0.06715472]
[1764312412441,0.47591,91432.0,91431.0,0.02295472]
[1764312412442,0.48842,91432.0,91431.0,0.02295472]
[1764312413540,0.48842,91432.0,91431.0,0.04501472]
[1764312414940,0.48842,91432.0,91431.0,0.06715472]
[1764312416137,0.47591,91432.0,91431.0,0.06715472]
[1764312416343,0.58823,91432.0,91431.0,0.06715472]
[1764312419448,0.94903,91432.0,91431.0,0.06715472]
[1764312422043,0.58903,91432.0,91431.0,0.06715472]
[1764312422247,0.98903,91432.0,91431.0,0.06715472]
[1764312426346,0.98903,91432.0,91431.0,0.04501472]
[1764312426542,1.0015,91432.0,91431.0,0.02295472]
[1764312426737,1.0015,91432.0,91431.0,0.04439472]
[1764312429436,1.0015,91432.0,91431.0,0.02295472]
[1764312433452,1.0015,91432.0,91431.0,0.06737472]
[1764312434251,1.0015,91432.0,91431.0,0.02295472]
[1764312434955,1.0015,91432.0,91431.0,0.04439472]
[1764312436545,1.0015,91432.0,91431.0,0.02295472]
[1764312436745,1.0015,91432.0,91431.0,0.04439472]
[1764312443858,1.0015,91432.0,91431.0,0.02295472]
[1764312446059,0.04594,91423.0,91422.0,0.01764748]
[1764312446260,0.8376811,91423.0,91422.0,0.00016401]
[1764312447364,0.8376811,91423.0,91422.0,0.00516401]
[1764312448056,0.8376811,91423.0,91422.0,0.00616401]
[1764312450158,0.8376811,91423.0,91422.0,0.02361895]
[1764312450361,0.8376811,91423.0,91422.0,0.00616401]
[1764312454868,0.8376811,91423.0,91422.0,0.02348035]
[1764312460168,0.6300011,91423.0,91422.0,0.06758035]
[1764312460472,0.9000011,91423.0,91422.0,0.06758035]
[1764312461677,0.7276811,91423.0,91422.0,0.06758035]
[1764312461870,0.43674,91423.0,91422.0,0.08051035]
[1764312462176,0.60906,91423.0,91422.0,0.08051035]
[1764312462779,0.43674,91423.0,91422.0,0.08051035]
[1764312463676,0.41411,91423.0,91422.0,0.08051035]
[1764312463880,0.3908,91423.0,91422.0,0.08051035]
[1764312464265,0.81325,91423.0,91422.0,0.08051035]
[1764312464470,0.50556,91423.0,91422.0,0.08051035]
[1764312467979,0.77556,91423.0,91422.0,0.08051035]
[1764312471387,0.41476,91423.0,91422.0,0.08051035]
[1764312471583,0.40556,91427.0,91426.0,0.0441]
[1764312472687,0.38325,91427.0,91426.0,0.0550407]
[1764312472981,0.40556,91427.0,91426.0,0.0580407]
[1764312473178,0.40556,91427.0,91426.0,0.0590407]
[1764312474589,0.04476,91427.0,91426.0,0.0590407]
[1764312481689,0.04429,91436.0,91435.0,0.0567196]
[1764312483086,0.04429,91436.0,91435.0,0.0577196]
[1764312484083,0.02136,91436.0,91435.0,0.0577196]
[1764312484694,0.04429,91436.0,91435.0,0.0577196]
[1764312488496,0.04429,91436.0,91435.0,0.07531488]
[1764312489395,0.02136,91436.0,91435.0,0.07531488]
[1764312489596,0.04445401,91441.0,91440.0,0.070249]
[1764312495593,0.02152401,91441.0,91440.0,0.070249]
[1764312496395,0.00016401,91441.0,91440.0,0.070249]
[1764312497992,0.04445401,91441.0,91440.0,0.070249]
[1764312509308,0.04445401,91441.0,91440.0,0.05931]
[1764312509612,0.04445401,91441.0,91440.0,0.070249]
[1764312510406,0.04445401,91441.0,91440.0,0.04578]
[1764312515816,0.49445401,91441.0,91440.0,0.02302]
[1764312516721,0.49445401,91441.0,91440.0,0.04411]
[1764312524022,0.25445401,91441.0,91440.0,0.04411]
[1764312531126,0.49445401,91441.0,91440.0,0.04411]
[1764312532327,0.25445401,91441.0,91440.0,0.04411]
[1764312533829,0.46445401,91441.0,91440.0,0.04411]
[1764312537841,0.24445401,91441.0,91440.0,0.04411]
[1764312539436,0.42445401,91441.0,91440.0,0.04411]
[1764312540728,0.38016401,91441.0,91440.0,0.010939]
[1764312540929,0.42337401,91441.0,91440.0,0.010939]
[1764312541631,0.42337401,91441.0,91440.0,0.033359]
[1764312541938,0.42337401,91441.0,91440.0,0.055499]
[1764312543230,0.42337401,91441.0,91440.0,0.15374183]
[1764312545040,0.42337401,91441.0,91440.0,0.10918183]
[1764312546640,0.42337401,91441.0,91440.0,0.09824283]
[1764312547547,0.42337401,91441.0,91440.0,0.12084283]
[1764312548541,0.42337401,91441.0,91440.0,0.09824283]
[1764312549745,0.42337401,91441.0,91440.0,0.10918183]
[1764312550242,0.42337401,91441.0,91440.0,0.13178183]
[1764312550542,0.42337401,91441.0,91440.0,0.09824283]
[1764312550743,0.42337401,91441.0,91437.0,0.0109394]
[1764312550744,0.04357,91438.0,91437.0,0.09824283]
[1764312550943,0.04357,91438.0,91435.0,0.01759528]
[1764312550944,0.04357,91436.0,91435.0,0.01759528]
[1764312551134,0.04357,91436.0,91429.0,0.09824283]
[1764312551135,0.04357,91430.0,91429.0,0.09824283]
[1764312551336,0.04357,91427.0,91426.0,0.14298283]
[1764312551642,0.04357,91427.0,91426.0,0.1612392]
[1764312552744,0.0545106,91427.0,91426.0,0.1622392]
[1764312552946,0.4245106,91427.0,91426.0,0.1622392]
[1764312553245,0.41357,91427.0,91426.0,0.1204992]
[1764312553545,0.41357,91427.0,91426.0,0.04478637]
[1764312553738,0.41357,91427.0,91426.0,0.06650637]
[1764312555138,0.41357,91427.0,91426.0,0.07744707]
[1764312557047,0.41357,91427.0,91426.0,0.06650637]
[1764312557435,0.41357,91427.0,91426.0,0.07744707]
[1764312557642,0.41357,91427.0,91426.0,0.06650637]
[1764312558346,0.41357,91427.0,91426.0,0.07744707]
[1764312563054,0.41357,91427.0,91426.0,0.02225637]
[1764312569165,0.41357,91427.0,91426.0,0.03319707]
[1764312569367,0.41357,91427.0,91426.0,0.02225637]
[1764312569563,0.41357,91427.0,91426.0,0.04478637]
[1764312571366,0.41357,91427.0,91426.0,0.06650637]
[1764312578871,0.04357,91427.0,91426.0,0.06650637]
[1764312579074,0.40494,91434.0,91433.0,0.04559]
[1764312579372,0.53494,91434.0,91433.0,0.04559]
[1764312580776,0.53494,91434.0,91433.0,0.04659]
[1764312580974,0.40494,91434.0,91433.0,0.04659]
[1764312581177,0.3608,91434.0,91433.0,0.04659]
[1764312581379,0.04430401,91441.0,91440.0,0.068989]
[1764312581581,0.04430401,91441.0,91440.0,0.04559]
[1764312582980,0.45430401,91441.0,91436.0,0.09824283]
[1764312583181,0.04414,91437.0,91436.0,0.14383283]
[1764312583484,0.04414,91437.0,91436.0,0.04559]
[1764312584483,0.04414,91437.0,91436.0,0.04659]
[1764312589794,0.04414,91437.0,91436.0,0.06471864]
[1764312591986,0.44414,91437.0,91436.0,0.06471864]
[1764312596288,0.45664,91437.0,91436.0,0.01912864]
[1764312598389,0.81744,91437.0,91436.0,0.01912864]
[1764312599696,0.81744,91437.0,91436.0,0.04199864]
[1764312600392,0.81744,91437.0,91436.0,0.06471864]
[1764312600702,0.80494,91437.0,91436.0,0.06471864]
[1764312605098,0.57494,91437.0,91436.0,0.06471864]
[1764312605598,0.85494,91437.0,91436.0,0.06471864]
[1764312609402,0.49414,91437.0,91436.0,0.06471864]
[1764312611904,0.22414,91437.0,91436.0,0.06471864]
[1764312612204,0.28414,91437.0,91436.0,0.06471864]
[1764312639916,0.28414,91437.0,91436.0,0.07565814]
[1764312645126,0.28414,91437.0,91436.0,0.01912864]
[1764312649622,0.64494,91437.0,91436.0,0.01912864]
[1764312661730,0.64494,91437.0,91422.0,0.13826802]
[1764312661731,0.04533,91429.0,91428.0,0.09824283]
[1764312661934,0.0562711,91423.0,91422.0,0.04248401]
[1764312662136,0.4562711,91423.0,91422.0,0.04248401]
[1764312663333,0.4562711,91423.0,91422.0,0.04548401]
[1764312663733,0.4562711,91423.0,91422.0,0.06216179]
[1764312664740,0.4562711,91423.0,91422.0,0.06316179]
[1764312668535,0.44533,91423.0,91422.0,0.06316179]
[1764312668844,0.44533,91423.0,91422.0,0.07661179]
[1764312672046,0.40613,91429.0,91428.0,0.0667105]
[1764312673033,0.40613,91429.0,91428.0,0.0677105]
[1764312673237,0.04533,91429.0,91428.0,0.0677105]
[1764312673437,0.4157194,91437.0,91436.0,0.04389]
[1764312673647,0.49478,91437.0,91436.0,0.04389]
[1764312676044,0.13398,91437.0,91436.0,0.04389]
[1764312677040,0.04398,91437.0,91436.0,0.04389]
[1764312677244,0.30398,91437.0,91436.0,0.04389]
[1764312679348,0.04398,91437.0,91436.0,0.04389]
[1764312680543,0.04398,91437.0,91436.0,0.04489]
[1764312681642,0.04398,91437.0,91436.0,0.04589]
[1764312682149,0.04398,91437.0,91436.0,0.04489]
[1764312682546,0.04398,91437.0,91436.0,0.06167287]
[1764312686050,0.05428,91437.0,91436.0,0.01778287]
[1764312686240,0.77508,91437.0,91436.0,0.01778287]
[1764312687245,0.77508,91437.0,91436.0,0.01678287]
[1764312687549,0.04398,91423.0,91422.0,0.04405401]
[1764312687852,0.44398,91423.0,91422.0,0.04405401]
[1764312688652,0.44398,91423.0,91422.0,0.04705401]
[1764312688854,0.44398,91423.0,91422.0,0.04805401]
[1764312691956,0.44398,91423.0,91422.0,0.04083339]
[1764312692145,0.44398,91423.0,91422.0,0.01966339]
[1764312693753,0.44398,91423.0,91422.0,3.39e-06]
[1764312693958,0.0225,91403.0,91402.0,0.50329636]
[1764312694257,0.0225,91403.0,91402.0,0.40505353]
[1764312695052,0.0225,91403.0,91402.0,0.40705353]
[1764312695354,0.0225,91403.0,91402.0,0.05325353]
[1764312695853,0.0225,91403.0,91402.0,0.06419713]
[1764312697060,0.0225,91403.0,91402.0,0.0795051]
[1764312697862,0.0225,91403.0,91402.0,0.0685615]
[1764312700258,0.0334426,91411.0,91410.0,0.04416]
[1764312700557,0.4734426,91411.0,91410.0,0.04416]
[1764312701561,0.4734426,91411.0,91410.0,0.04516]
[1764312701765,0.4734426,91411.0,91410.0,0.04916]
[1764312706268,0.4734426,91411.0,91410.0,0.06267]
[1764312707159,0.8342426,91411.0,91410.0,0.06267]
[1764312708571,0.4633,91411.0,91410.0,0.06267]
[1764312709863,0.08,91411.0,91410.0,0.42347]
[1764312710164,0.02266411,91412.0,91411.0,0.0551025]
[1764312710365,0.18266411,91412.0,91411.0,0.0551025]
[1764312710568,0.08266411,91412.0,91411.0,0.0551025]
[1764312711370,0.08266411,91412.0,91411.0,0.0561025]
[1764312712466,0.02266411,91412.0,91411.0,0.0601025]
[1764312712670,0.16266411,91412.0,91411.0,0.0601025]
[1764312713968,0.38266411,91412.0,91411.0,0.0601025]
[1764312714174,0.02266411,91412.0,91411.0,0.0601025]
[1764312714371,0.14266411,91412.0,91411.0,0.0601025]
[1764312714673,0.40266411,91412.0,91411.0,0.0601025]
[1764312716364,0.40266411,91412.0,91411.0,0.04916]
[1764312719365,0.40266411,91412.0,91411.0,0.005]
[1764312719966,0.40266411,91412.0,91411.0,0.04916]
[1764312722778,0.44266411,91412.0,91411.0,0.04916]
[1764312723679,0.21266411,91412.0,91411.0,0.04916]
[1764312724680,0.44266411,91412.0,91411.0,0.04916]
[1764312724883,0.43141411,91412.0,91411.0,0.04916]
[1764312725282,0.44266411,91412.0,91411.0,0.04916]
[1764312728282,0.16016411,91412.0,91411.0,0.04916]
[1764312728687,0.17141411,91412.0,91411.0,0.04916]
[1764312728890,0.18266411,91412.0,91411.0,0.04916]
[1764312729998,0.02266411,91412.0,91411.0,0.04916]
[1764312730202,0.01141411,91412.0,91411.0,0.04916]
[1764312730392,0.00016411,91412.0,91411.0,0.04916]
[1764312730593,0.02266411,91412.0,91411.0,0.04916]
[1764312733000,0.43266411,91412.0,91411.0,0.04916]
[1764312735596,0.43266411,91412.0,91411.0,0.14740283]
[1764312737902,0.02266411,91412.0,91411.0,0.14740283]
[1764312738104,0.17266411,91412.0,91411.0,0.14740283]
[1764312741305,0.17266411,91412.0,91411.0,0.04916]
[1764312742101,0.01141411,91412.0,91411.0,0.04916]
[1764312742303,0.3833,91433.0,91432.0,0.05926]
[1764312742503,0.6833,91433.0,91432.0,0.0702]
[1764312743108,0.4133,91433.0,91432.0,0.0702]
[1764312743407,0.8133,91433.0,91432.0,0.05926]
[1764312743610,0.8143,91433.0,91432.0,0.05926]
[1764312745805,0.5743,91433.0,91432.0,0.05926]
[1764312746009,0.7643,91433.0,91432.0,0.05926]
[1764312750712,0.7643,91433.0,91432.0,0.07457228]
[1764312750915,0.7643,91433.0,91432.0,0.03859228]
[1764312753719,0.4035,91433.0,91432.0,0.03859228]
[1764312754818,0.4035,91433.0,91432.0,0.05993228]
[1764312755714,0.4035,91433.0,91432.0,0.07282228]
[1764312756016,0.02266411,91442.0,91441.0,0.0542989]
[1764312756219,0.36266411,91442.0,91441.0,0.0542989]
[1764312757215,0.02366411,91442.0,91441.0,0.0542989]
[1764312757712,0.02466411,91442.0,91441.0,0.0542989]
[1764312758421,0.02366411,91442.0,91441.0,0.0542989]
[1764312759720,0.02266411,91442.0,91441.0,0.0542989]
[1764312759921,0.02366411,91442.0,91441.0,0.0542989]
[1764312760427,0.02266411,91442.0,91441.0,0.0542989]
[1764312761720,0.02366411,91442.0,91441.0,0.0542989]
[1764312763127,0.02266411,91442.0,91441.0,0.0542989]
[1764312763323,0.02366411,91442.0,91441.0,0.0542989]
[1764312766330,0.02366411,91442.0,91441.0,0.04336]
[1764312767126,0.02266411,91442.0,91441.0,0.04336]
[1764312767432,0.02366411,91442.0,91441.0,0.04336]
[1764312767728,0.02466411,91442.0,91441.0,0.04336]
[1764312767930,0.02466411,91442.0,91436.0,0.05625]
[1764312767931,0.0225,91437.0,91436.0,0.05625]
[1764312768122,0.4325,91437.0,91436.0,0.04336]
[1764312769627,0.4335,91437.0,91436.0,0.04336]
[1764312770440,0.4335,91437.0,91436.0,0.05625]
[1764312774927,0.4335,91437.0,91436.0,0.05725]
[1764312775737,0.4325,91437.0,91436.0,0.05825]
[1764312776336,0.1525,91437.0,91436.0,0.05825]
[1764312776837,0.1535,91437.0,91436.0,0.05725]
[1764312777526,0.1535,91437.0,91436.0,0.05625]
[1764312777950,0.00016411,91442.0,91436.0,0.05625]
[1764312778134,0.00016411,91442.0,91441.0,0.0542989]
[1764312778940,0.01141411,91442.0,91441.0,0.0542989]
[1764312779329,0.00016411,91442.0,91441.0,0.0552989]
[1764312779840,0.00016411,91442.0,91441.0,0.0542989]
[1764312780041,0.00016411,91442.0,91441.0,0.0552989]
[1764312780538,0.01141411,91442.0,91441.0,0.0552989]
[1764312780745,0.02266411,91442.0,91441.0,0.0562989]
[1764312781241,0.80440291,91442.0,91441.0,0.002]
[1764312782642,0.80640291,91442.0,91441.0,0.001]
[1764312782840,0.0109399,91433.0,91432.0,0.02625218]
[1764312783145,0.0109399,91433.0,91432.0,0.02188]
[1764312783146,0.8442399,91433.0,91432.0,0.02188]
[1764312783646,0.0334402,91430.0,91429.0,0.0554903]
[1764312783944,0.4534402,91430.0,91429.0,0.0554903]
[1764312784147,0.4425,91430.0,91429.0,0.0554903]
[1764312785744,0.4425,91430.0,91429.0,0.0564903]
[1764312786136,0.4425,91430.0,91429.0,0.0574903]
[1764312787844,0.4425,91430.0,91429.0,0.01821312]
[1764312792545,0.8033,91430.0,91429.0,0.01821312]
[1764312792845,0.8033,91430.0,91429.0,0.04009312]
[1764312793341,0.4425,91430.0,91429.0,0.04009312]
[1764312793547,0.8033,91430.0,91429.0,0.04009312]
[1764312797645,0.4425,91430.0,91429.0,0.04009312]
[1764312797844,0.8033,91430.0,91429.0,0.01821312]
[1764312798339,0.8033,91430.0,91429.0,0.04052312]
[1764312802755,0.8033,91430.0,91429.0,0.01821312]
[1764312804449,0.97554,91430.0,91429.0,0.01821312]
[1764312811050,0.0225,91424.0,91423.0,0.00016411]
[1764312811249,0.8442409,91424.0,91423.0,0.00016411]
[1764312811651,0.8442409,91424.0,91423.0,0.01635705]
[1764312812242,0.8442409,91424.0,91423.0,0.01735705]
[1764312813153,0.8442409,91424.0,91423.0,0.01935705]
[1764312813956,0.8442409,91424.0,91423.0,0.04164705]
[1764312820464,0.8442409,91424.0,91423.0,0.06375705]
[1764312825565,0.8442409,91424.0,91423.0,0.04164705]
[1764312826757,1.0165209,91424.0,91423.0,0.04164705]
[1764312828263,1.0165209,91424.0,91423.0,0.06375705]
[1764312829368,1.0165209,91424.0,91423.0,0.01935705]
[1764312832167,1.0165209,91424.0,91423.0,0.04164705]
[1764312833066,1.3773209,91424.0,91423.0,0.04164705]
[1764312833665,1.3773209,91424.0,91423.0,0.06375705]
[1764312834774,1.1373209,91424.0,91423.0,0.06375705]
[1764312835166,1.3473209,91424.0,91423.0,0.06375705]
[1764312839974,0.6257209,91424.0,91423.0,0.06375705]
[1764312840271,0.9865209,91424.0,91423.0,0.06375705]
[1764312840874,0.54205,91424.0,91423.0,0.06375705]
[1764312841172,0.80205,91424.0,91423.0,0.06375705]
[1764312841871,0.7608,91424.0,91423.0,0.06375705]
[1764312845178,0.7833,91424.0,91423.0,0.06375705]
[1764312853486,0.7833,91424.0,91423.0,0.04180705]
[1764312853682,0.7833,91424.0,91423.0,0.01935705]
[1764312861686,0.7833,91424.0,91423.0,0.04180705]
[1764312861882,0.7833,91424.0,91423.0,0.06333705]
[1764312869500,0.5633,91424.0,91423.0,0.06333705]
[1764312870097,0.5408,91424.0,91423.0,0.06333705]
[1764312870298,0.7908,91424.0,91423.0,0.06333705]
[1764312870699,0.80205,91424.0,91423.0,0.06333705]
[1764312871500,0.8133,91424.0,91423.0,0.06333705]
[1764312878602,0.4525,91424.0,91423.0,0.06333705]
[1764312882814,0.4525,91424.0,91423.0,0.04180705]
[1764312883019,0.4525,91424.0,91423.0,0.01935705]
[1764312883913,0.4525,91424.0,91423.0,0.04199705]
[1764312884313,0.4525,91424.0,91423.0,0.06469705]
[1764312891317,0.4525,91424.0,91423.0,0.01935705]
[1764312891615,0.4525,91424.0,91423.0,0.04199705]
[1764312891914,0.4525,91424.0,91423.0,0.06469705]
[1764312892516,0.4525,91424.0,91423.0,0.04199705]